bitfinex/quotes_SOLUSD_20220208
["timestamp","ask_amount","ask_price","bid_price","bid_amount"]
[1644357434742,13.275,113.04,112.96,18.71]
[1644357434937,13.275,113.04,112.97,38.15550272]
[1644357435139,13.275,113.04,112.97,44.15550272]
[1644357435736,13.275,113.04,112.98,13.2754]
[1644357435937,13.275,113.04,112.99,42.1009737]
[1644357436339,13.2734,113.05,112.99,42.3509737]
[1644357437340,13.2734,113.05,112.99,48.3509737]
[1644357437638,13.2734,113.05,112.99,42.3509737]
[1644357437838,13.2734,113.05,112.99,55.6252737]
[1644357438539,61.65739648,113.05,112.99,61.6252737]
[1644357439340,0.03529398,113.06,112.99,61.6252737]
[1644357439341,13.30739398,113.06,112.99,61.6252737]
[1644357439663,23.61969398,113.07,112.99,75.64374099]
[1644357439869,0.03529398,113.07,112.99,89.56389478]
[1644357440063,27.28171492,113.11,112.99,89.56389478]
[1644357440064,24.20319398,113.1,112.99,89.56389478]
[1644357440263,34.34373042,113.09,112.99,89.56389478]
[1644357440466,0.03529398,113.08,112.99,89.56389478]
[1644357440665,0.03529398,113.08,112.99,177.97389478]
[1644357440865,0.03529398,113.09,112.99,177.97389478]
[1644357441066,0.03529398,113.1,112.99,177.97389478]
[1644357441264,0.03529398,113.11,112.99,177.97389478]
[1644357441466,0.03529398,113.11,112.99,201.92979478]
[1644357441667,38.67782842,113.11,112.99,201.92979478]
[1644357443971,0.03529398,113.11,112.99,201.92979478]
[1644357445574,0.03529398,113.11,112.99,214.77568028]
[1644357445975,0.03529398,113.11,112.99,373.67568028]
[1644357446281,0.03529398,113.11,112.99,234.79224295]
[1644357446482,0.03529398,113.12,113.05,101.6712]
[1644357446680,0.03529398,113.1,113.06,12.71]
[1644357446876,0.03529398,113.15,113.07,36.11857314]
[1644357447074,0.03529398,113.15,113.09,46.86019916]
[1644357447274,47.90029398,113.17,113.09,47.11019916]
[1644357447475,74.40970087,113.17,113.09,47.11019916]
[1644357447780,47.90029398,113.17,113.12,46.90427853]
[1644357447977,47.865,113.17,113.12,46.90427853]
[1644357448776,39.00407248,113.19,113.12,60.16357853]
[1644357448977,38.9687785,113.19,113.12,60.16357853]
[1644357449176,44.9687785,113.19,113.12,60.16357853]
[1644357449675,44.9687785,113.19,113.12,13.2593]
[1644357449874,58.2270785,113.19,113.11,13.26]
[1644357450077,0.03529398,113.18,113.11,13.26]
[1644357450278,44.9687785,113.19,113.08,12.71]
[1644357450477,0.03529398,113.17,113.08,18.71]
[1644357450679,29.90622195,113.17,113.09,42.13498065]
[1644357450879,29.94151593,113.17,113.09,42.13498065]
[1644357451480,29.94151593,113.17,113.09,42.38498065]
[1644357451877,13.2622,113.16,113.09,61.64738065]
[1644357452077,13.2622,113.16,113.09,55.64738065]
[1644357452881,38.9687785,113.15,113.09,55.64738065]
[1644357453079,38.9687785,113.15,113.09,61.64738065]
[1644357453278,38.9687785,113.15,113.09,55.64738065]
[1644357454581,52.2307785,113.15,113.09,55.64738065]
[1644357455487,52.2307785,113.15,113.05,44.2113]
[1644357455686,23.51369398,113.14,113.05,6.0]
[1644357455884,13.2674,113.12,113.01,35.9573]
[1644357456083,13.2674,113.12,113.01,37.26576729]
[1644357456084,23.4784,113.11,113.01,37.26576729]
[1644357456281,23.51369398,113.11,113.01,37.26576729]
[1644357456481,29.90622195,113.1,113.02,47.93581681]
[1644357456882,29.94151593,113.1,113.02,47.93581681]
[1644357457081,0.03529398,113.1,113.02,53.93581681]
[1644357457280,23.4784,113.11,113.02,54.18581681]
[1644357457882,13.2689,113.09,113.03,13.2689]
[1644357458084,13.2689,113.09,113.04,38.02508054]
[1644357458282,13.2689,113.09,113.04,38.27508054]
[1644357458483,40.97425264,113.09,113.04,38.27508054]
[1644357458683,40.97425264,113.09,113.04,38.02508054]
[1644357459583,40.97425264,113.09,113.02,13.2702]
[1644357459785,50.09225264,113.09,113.02,13.5202]
[1644357460586,50.09225264,113.09,113.03,45.8725707]
[1644357460785,40.97425264,113.09,113.03,45.8725707]
[1644357461989,13.2689,113.09,113.03,59.3917707]
[1644357462186,13.2689,113.09,113.03,59.1417707]
[1644357462386,13.2689,113.09,113.03,59.3917707]
[1644357462585,13.2689,113.09,113.03,59.1417707]
[1644357463687,13.2689,113.09,113.03,59.3917707]
[1644357464189,13.2689,113.09,113.03,59.1417707]
[1644357464386,13.27,113.07,113.03,45.8725707]
[1644357464586,13.27,113.07,113.02,13.2703]
[1644357464787,13.27,113.07,113.02,0.25]
[1644357465788,13.27,113.07,113.01,43.61540353]
[1644357466587,13.27,113.07,113.01,49.36540353]
[1644357466787,13.27,113.07,113.01,62.63660353]
[1644357468189,13.27,113.07,113.01,62.88660353]
[1644357468389,13.27,113.07,113.01,62.63660353]
[1644357469791,13.27,113.07,113.01,62.88660353]
[1644357470491,41.01987972,113.07,113.01,62.63660353]
[1644357470691,41.01987972,113.07,113.01,56.88660353]
[1644357470890,41.01987972,113.07,113.01,62.63660353]
[1644357471690,41.01987972,113.07,113.01,56.63660353]
[1644357472191,41.01987972,113.07,113.01,62.63660353]
[1644357472691,41.01987972,113.07,113.01,56.63660353]
[1644357472892,41.01987972,113.07,113.01,56.88660353]
[1644357473091,41.01987972,113.07,113.01,56.63660353]
[1644357473291,41.01987972,113.07,113.01,56.88660353]
[1644357473590,13.27,113.07,113.01,56.88660353]
[1644357474692,49.64745554,113.07,113.01,56.63660353]
[1644357474994,49.64745554,113.07,113.0,13.2728]
[1644357475191,49.64745554,113.07,112.99,0.25]
[1644357475393,74.48665554,113.07,112.99,0.25]
[1644357475992,74.48665554,113.07,112.97,12.71]
[1644357475993,74.48665554,113.07,112.98,43.99914384]
[1644357476398,74.48665554,113.07,112.97,12.71]
[1644357476793,74.48665554,113.07,112.98,13.275]
[1644357477594,74.48665554,113.07,112.98,59.9622016]
[1644357478293,74.48665554,113.07,112.98,60.2122016]
[1644357479395,74.48665554,113.07,112.98,59.9622016]
[1644357479594,74.48665554,113.07,112.98,60.2122016]
[1644357479994,80.48665554,113.07,112.98,60.2122016]
[1644357481195,80.48665554,113.07,112.98,59.9622016]
[1644357481894,74.48665554,113.07,112.98,59.9622016]
[1644357483597,74.48665554,113.07,112.98,65.9622016]
[1644357484001,74.48665554,113.07,112.98,59.9622016]
[1644357484199,74.48665554,113.07,112.98,60.2122016]
[1644357485500,74.48665554,113.07,112.98,13.275]
[1644357486301,74.48665554,113.07,112.97,13.2764]
[1644357486701,74.48665554,113.07,112.97,61.6940894]
[1644357487101,74.48665554,113.07,112.97,67.6940894]
[1644357487302,74.48665554,113.07,112.97,13.2764]
[1644357488419,74.48665554,113.07,112.98,42.75673306]
[1644357488920,74.48665554,113.07,112.98,43.00673306]
[1644357489225,82.59441103,113.07,112.95,12.71]
[1644357489419,82.59441103,113.07,112.92,91.586]
[1644357489420,12.71,113.06,112.92,91.586]
[1644357489620,13.2805,113.02,112.92,97.586]
[1644357489822,24.0746,113.01,112.92,97.586]
[1644357490023,56.57214491,113.01,112.93,41.19004631]
[1644357490223,56.57214491,113.01,112.93,47.19004631]
[1644357490422,56.57214491,113.01,112.93,60.72084631]
[1644357490624,56.57214491,113.01,112.93,47.44004631]
[1644357491023,13.2802,112.99,112.93,41.44004631]
[1644357491430,58.05065554,112.99,112.93,41.19004631]
[1644357491827,58.05065554,112.99,112.89,23.0365]
[1644357492024,58.05065554,112.99,112.9,6.0]
[1644357492223,58.05065554,112.99,112.89,29.0365]
[1644357492625,82.09555554,112.99,112.9,13.2846]
[1644357492824,82.09555554,112.99,112.91,38.53477658]
[1644357493225,82.09555554,112.99,112.91,44.78477658]
[1644357493826,82.09555554,112.99,112.9,13.2846]
[1644357494027,82.09555554,112.99,112.87,112.5]
[1644357494226,2.10775549,112.98,112.87,112.5]
[1644357494430,13.2893,112.95,112.87,112.5]
[1644357494630,44.8887,112.95,112.87,112.5]
[1644357494828,32.49754491,112.94,112.87,112.5]
[1644357495227,34.6053004,112.94,112.87,112.5]
[1644357495828,40.6053004,112.94,112.8,112.524]
[1644357496028,35.18542456,112.92,112.83,0.024]
[1644357496229,48.47702456,112.92,112.82,43.61957792]
[1644357496428,48.47702456,112.92,112.83,0.024]
[1644357496729,33.68957589,112.9,112.83,0.024]
[1644357497132,43.07557589,112.9,112.83,0.024]
[1644357497331,43.07557589,112.9,112.76,112.5]
[1644357497332,13.2944,112.89,112.8,0.024]
[1644357497530,61.45035549,112.89,112.77,0.024]
[1644357497729,61.45035549,112.89,112.79,0.024]
[1644357497931,74.16035549,112.89,112.77,0.024]
[1644357498232,35.18542456,112.88,112.77,35.41125631]
[1644357498430,35.18542456,112.88,112.78,0.024]
[1644357499030,13.2977,112.85,112.78,0.024]
[1644357499232,13.2977,112.85,112.77,54.95915631]
[1644357499832,13.2977,112.85,112.77,54.70915631]
[1644357500532,13.2977,112.85,112.78,1.31031931]
[1644357500732,23.2466,112.87,112.79,43.06037305]
[1644357500932,67.4599,112.89,112.79,43.08437305]
[1644357501133,217.0903713,112.94,112.8,1.31031931]
[1644357501134,97.9118713,112.94,112.8,1.31031931]
[1644357501332,46.0951,112.93,112.81,0.024]
[1644357501832,48.71858099,112.91,112.83,35.10309365]
[1644357502035,60.43258099,112.91,112.83,0.024]
[1644357502333,13.2922,112.89,112.83,0.024]
[1644357502534,13.2922,112.89,112.81,0.024]
[1644357503134,33.44861946,112.89,112.8,46.07878586]
[1644357503339,33.44861946,112.89,112.81,0.024]
[1644357503735,33.44861946,112.89,112.81,13.3189]
[1644357503934,33.44861946,112.89,112.82,34.63120057]
[1644357507540,33.44861946,112.89,112.81,13.2949]
[1644357507741,46.05561946,112.89,112.81,13.2949]
[1644357508940,46.05561946,112.89,112.81,13.3189]
[1644357509141,52.05561946,112.89,112.81,13.3189]
[1644357510243,52.05561946,112.89,112.82,37.77844404]
[1644357510840,39.44861946,112.89,112.82,37.77844404]
[1644357513344,39.44861946,112.89,112.82,51.07174404]
[1644357513345,19.2922,112.89,112.82,51.07174404]
[1644357513545,13.2922,112.89,112.83,1.31960973]
[1644357513745,13.2912,112.9,112.83,1.31960973]
[1644357513946,13.2912,112.9,112.82,37.77844404]
[1644357514147,13.2912,112.9,112.82,43.77844404]
[1644357514345,60.71974829,112.9,112.82,43.77844404]
[1644357514675,13.2912,112.9,112.82,43.77844404]
[1644357514848,13.2912,112.9,112.82,43.80244404]
[1644357515246,13.2912,112.9,112.82,44.05244404]
[1644357515649,34.83072285,112.89,112.82,43.80244404]
[1644357515845,34.83072285,112.89,112.82,57.09484404]
[1644357516247,13.2912,112.9,112.82,57.34484404]
[1644357518048,13.2899,112.91,112.82,79.15284404]
[1644357518251,67.6919,112.93,112.82,80.44845377]
[1644357518252,23.3877,112.93,112.82,80.44845377]
[1644357518449,12.71,112.97,112.86,13.2871]
[1644357518748,12.71,112.97,112.86,13.5371]
[1644357518749,23.0658,112.96,112.86,13.5371]
[1644357518949,36.44147129,112.95,112.87,39.5587553]
[1644357519147,13.2875,112.94,112.87,39.5587553]
[1644357519348,13.2875,112.94,112.87,39.8087553]
[1644357519549,23.0658,112.96,112.88,13.2865]
[1644357519749,23.0658,112.96,112.88,13.5365]
[1644357520149,23.0658,112.96,112.88,13.2865]
[1644357520350,47.37522304,112.95,112.89,42.34372948]
[1644357520551,23.0658,112.96,112.89,42.34372948]
[1644357520751,13.2855,112.95,112.89,42.34372948]
[1644357521553,61.0585143,112.95,112.89,42.34372948]
[1644357525981,61.0585143,112.95,112.88,13.2865]
[1644357527084,13.2855,112.95,112.89,44.7445428]
[1644357527985,60.77067131,112.95,112.89,44.7445428]
[1644357532290,13.2855,112.95,112.89,44.7445428]
[1644357535295,13.2855,112.95,112.89,58.0299428]
[1644357538398,36.35,112.96,112.89,58.0299428]
[1644357538599,1.25833098,112.98,112.91,34.22039733]
[1644357538800,23.413,112.99,112.92,13.2815]
[1644357539099,23.413,112.99,112.93,35.29810873]
[1644357540802,36.6936,112.99,112.93,48.57860873]
[1644357542403,13.2818,112.98,112.93,48.57860873]
[1644357542603,1.25833098,113.0,112.93,55.89821846]
[1644357542804,1.25833098,113.01,112.93,67.28860873]
[1644357543203,1.25833098,113.03,112.93,67.28860873]
[1644357543405,37.39457656,113.02,112.93,67.28860873]
[1644357543605,51.92970754,113.02,112.93,67.53860873]
[1644357545105,57.92970754,113.02,112.93,67.53860873]
[1644357545508,57.92970754,113.02,112.93,61.53860873]
[1644357546109,57.92970754,113.02,112.93,67.53860873]
[1644357547108,51.92970754,113.02,112.93,67.53860873]
[1644357547312,1.25833098,113.02,112.94,88.41]
[1644357547609,23.8422,113.03,112.95,12.71]
[1644357547809,23.8422,113.03,112.97,13.2751]
[1644357548436,23.8422,113.03,112.98,41.98363346]
[1644357549632,55.57148283,113.04,112.98,41.98363346]
[1644357549832,55.57148283,113.04,112.98,55.25823346]
[1644357550033,54.31315185,113.04,112.98,55.25823346]
[1644357550333,13.2758,113.04,112.98,55.25823346]
[1644357550637,1.25833098,113.05,112.98,73.96823346]
[1644357550835,1.25833098,113.05,112.98,82.16623346]
[1644357551037,1.25833098,113.06,112.98,82.16623346]
[1644357551735,14.53133098,113.06,112.98,82.16623346]
[1644357552135,1.25833098,113.07,112.98,82.16623346]
[1644357552334,7.25833098,113.07,112.98,171.89570395]
[1644357552636,6.0,113.07,112.98,171.89570395]
[1644357553034,1.25833098,113.09,112.98,171.89570395]
[1644357553235,6.0,113.08,112.98,171.89570395]
[1644357553434,1.25833098,113.09,112.98,171.89570395]
[1644357553636,24.02622496,113.1,112.98,171.89570395]
[1644357553834,1.25833098,113.09,112.98,171.89570395]
[1644357554135,40.92528849,113.09,112.98,171.89570395]
[1644357554434,42.18361947,113.09,112.98,171.89570395]
[1644357554933,40.92528849,113.09,112.98,171.89570395]
[1644357555834,54.19448849,113.09,112.98,171.89570395]
[1644357557035,54.19448849,113.09,112.98,82.16623346]
[1644357557235,55.45281947,113.09,112.98,74.21823346]
[1644357557836,27.94971196,113.07,112.98,74.21823346]
[1644357558037,13.2721,113.06,112.98,74.21823346]
[1644357558239,35.86995198,113.05,112.98,31.9846]
[1644357558439,35.86995198,113.05,112.97,13.2765]
[1644357558640,35.86995198,113.05,112.92,12.71]
[1644357558841,35.86995198,113.05,112.96,6.0]
[1644357558842,24.72615549,113.04,112.96,6.0]
[1644357559042,13.278,113.02,112.92,18.71]
[1644357559241,13.278,113.02,112.93,40.65444221]
[1644357559643,13.278,113.02,112.93,47.97078525]
[1644357559850,13.278,113.02,112.96,13.278]
[1644357559851,38.1277,113.02,112.96,13.278]
[1644357560851,38.1277,113.02,112.93,46.65444221]
[1644357561156,13.2792,113.0,112.95,56.52125453]
[1644357561456,13.2792,113.0,112.95,43.24285453]
[1644357561850,13.2792,113.0,112.92,12.71]
[1644357562050,35.9083,113.0,112.92,12.96]
[1644357562850,35.9083,113.0,112.94,13.2794]
[1644357563050,24.20685813,112.99,112.94,13.2794]
[1644357563250,37.48695813,112.99,112.94,13.2794]
[1644357563949,13.2801,112.99,112.94,13.2794]
[1644357564855,13.2801,112.99,112.95,40.54584001]
[1644357565453,13.2801,112.99,112.94,13.2794]
[1644357566454,13.2801,112.99,112.94,48.34250345]
[1644357568356,13.2801,112.99,112.94,35.06310345]
[1644357570460,13.2801,112.99,112.94,48.34320345]
[1644357572160,44.32044398,112.99,112.94,48.34320345]
[1644357576358,44.32044398,112.99,112.94,13.2801]
[1644357577659,44.32044398,112.99,112.93,49.64537578]
[1644357577859,44.32044398,112.99,112.93,55.89537578]
[1644357579063,44.32044398,112.99,112.93,55.64537578]
[1644357580566,44.32044398,112.99,112.93,49.64537578]
[1644357585974,44.32044398,112.99,112.92,13.2821]
[1644357586173,52.13644398,112.99,112.92,13.2821]
[1644357586374,52.13644398,112.99,112.92,0.25]
[1644357586973,52.13644398,112.99,112.91,13.2834]
[1644357587173,52.13644398,112.99,112.9,42.09977949]
[1644357587373,53.39477496,112.99,112.9,36.12377949]
[1644357587573,53.39477496,112.99,112.9,0.024]
[1644357587973,1.25833098,112.98,112.9,0.024]
[1644357588173,13.2852,112.96,112.9,0.024]
[1644357588375,50.6785,112.96,112.89,12.734]
[1644357588573,37.83465647,112.95,112.89,12.734]
[1644357588873,37.83465647,112.95,112.88,0.024]
[1644357589698,13.2862,112.94,112.88,0.024]
[1644357590275,36.2024,112.94,112.86,6.024]
[1644357590673,36.2024,112.94,112.86,48.37672466]
[1644357590872,36.2024,112.94,112.87,13.288]
[1644357591073,36.2024,112.94,112.87,13.312]
[1644357591675,36.2024,112.94,112.87,13.562]
[1644357592177,36.2024,112.94,112.87,0.274]
[1644357592373,36.2024,112.94,112.87,0.024]
[1644357592576,36.2024,112.94,112.86,61.91562466]
[1644357592776,36.2024,112.94,112.87,0.024]
[1644357592979,36.2024,112.94,112.86,61.91562466]
[1644357593377,36.2024,112.94,112.86,19.3129]
[1644357593579,36.2024,112.94,112.86,0.024]
[1644357593779,38.31015549,112.94,112.86,0.024]
[1644357593978,38.31015549,112.94,112.83,1.25301688]
[1644357593979,13.2925,112.9,112.83,0.024]
[1644357594181,13.2925,112.9,112.84,0.024]
[1644357594381,31.04034398,112.89,112.82,20.04702715]
[1644357594580,31.04034398,112.89,112.83,49.7373495]
[1644357594979,31.04034398,112.89,112.83,36.4448495]
[1644357595180,13.2928,112.88,112.83,36.4448495]
[1644357596480,13.2928,112.88,112.82,18.734]
[1644357596781,13.2928,112.88,112.82,32.027]
[1644357597583,13.2928,112.88,112.83,38.87662118]
[1644357598184,13.2928,112.88,112.82,19.317]
[1644357598785,13.25621775,112.88,112.82,19.317]
[1644357599186,13.25621775,112.88,112.82,19.567]
[1644357599387,13.25621775,112.88,112.83,1.31302715]
[1644357599586,13.25621775,112.88,112.83,13.2918]
[1644357599787,13.25621775,112.88,112.83,13.5418]
[1644357599988,13.25621775,112.88,112.84,39.28837877]
[1644357601792,13.2913,112.89,112.84,52.57967877]
[1644357601992,13.2913,112.89,112.84,53.89270592]
[1644357602194,13.2913,112.89,112.84,54.14270592]
[1644357602392,13.2913,112.89,112.84,52.57967877]
[1644357603799,13.2913,112.89,112.84,53.89514838]
[1644357604295,13.2913,112.89,112.84,54.14514838]
[1644357604496,13.2913,112.89,112.84,53.89514838]
[1644357608313,13.2913,112.89,112.84,54.14514838]
[1644357608716,13.2913,112.89,112.84,53.89514838]
[1644357610118,13.2913,112.89,112.84,54.14514838]
[1644357611819,13.2913,112.89,112.84,52.82967877]
[1644357615425,24.4485,112.93,112.84,54.14514838]
[1644357615725,49.0339,112.93,112.84,83.00614838]
[1644357616025,1.25833098,112.95,112.87,13.2864]
[1644357616226,1.25833098,112.96,112.87,40.3374]
[1644357616423,1.25833098,112.96,112.88,47.68629734]
[1644357616424,34.25106143,112.95,112.88,47.68629734]
[1644357616826,13.2855,112.94,112.88,47.68629734]
[1644357617025,13.2855,112.94,112.88,47.93629734]
[1644357617228,13.2855,112.94,112.88,62.53786695]
[1644357617425,13.2855,112.94,112.88,68.53786695]
[1644357617626,13.2855,112.94,112.88,66.97239734]
[1644357617825,13.2855,112.94,112.88,60.97239734]
[1644357618830,13.2855,112.94,112.88,61.22239734]
[1644357621335,13.2855,112.94,112.88,67.22239734]
[1644357621529,13.2855,112.94,112.88,60.72239734]
[1644357622329,13.2843,112.95,112.88,60.72239734]
[1644357622529,13.2843,112.95,112.88,66.72239734]
[1644357625833,36.1381,112.96,112.88,66.72239734]
[1644357626032,1.25833098,112.98,112.91,13.2819]
[1644357626234,1.25833098,112.98,112.91,37.1749]
[1644357626435,23.76823098,113.0,112.92,1.31546961]
[1644357626633,23.76823098,113.0,112.92,20.02546961]
[1644357626836,22.5099,113.0,112.93,40.49316471]
[1644357627035,1.25833098,113.01,112.93,53.20316471]
[1644357627240,1.25833098,113.01,112.93,59.45316471]
[1644357627435,22.8878,113.03,112.94,14.59306961]
[1644357627436,14.53443098,113.02,112.94,14.59306961]
[1644357627636,13.2761,113.02,112.95,12.71]
[1644357627835,22.8878,113.03,112.95,14.27546961]
[1644357628035,22.8878,113.03,112.95,18.96]
[1644357628236,22.8878,113.03,112.96,34.45321537]
[1644357628638,22.8878,113.03,112.96,40.70321537]
[1644357628939,22.8878,113.03,112.96,42.01868498]
[1644357629740,22.8878,113.03,112.97,13.2753]
[1644357629938,22.8878,113.03,112.98,46.1450812]
[1644357630238,22.8878,113.03,112.98,52.3950812]
[1644357630978,23.0622,113.04,112.99,13.2737]
[1644357631139,1.29308942,113.06,112.99,19.2737]
[1644357631445,48.8787,113.07,112.99,19.2737]
[1644357631447,25.23628942,113.07,112.99,20.84944711]
[1644357631638,23.97795844,113.07,113.0,55.02042717]
[1644357631839,23.9432,113.07,113.0,63.62742717]
[1644357632039,0.03475844,113.08,113.02,13.2686]
[1644357632244,0.03475844,113.09,113.03,12.71]
[1644357632439,48.76808942,113.1,113.03,21.957]
[1644357632739,1.25833098,113.1,113.04,1.32574711]
[1644357632940,0.03475844,113.12,113.04,14.03574711]
[1644357633138,22.6846,113.14,113.05,43.74442985]
[1644357633139,0.03475844,113.11,113.05,43.74442985]
[1644357633341,0.03475844,113.12,113.07,36.22842919]
[1644357633539,29.97768942,113.14,113.07,36.22842919]
[1644357633739,22.71935844,113.14,113.07,36.47842919]
[1644357633945,22.71935844,113.14,113.07,36.22842919]
[1644357634138,0.03475844,113.14,113.07,47.80042919]
[1644357634339,48.99188942,113.15,113.07,47.80042919]
[1644357634539,48.95098558,113.15,113.07,47.80042919]
[1644357634740,13.2642,113.13,113.07,61.06432919]
[1644357635342,47.6926546,113.15,113.07,61.06432919]
[1644357635343,34.08170364,113.14,113.07,61.06432919]
[1644357635741,47.6926546,113.15,113.07,61.06432919]
[1644357636342,23.0613,113.15,113.07,61.06432919]
[1644357636544,1.25833098,113.16,113.07,75.1000763]
[1644357636743,1.25833098,113.18,113.07,81.3500763]
[1644357636942,23.82088773,113.17,113.07,81.3500763]
[1644357637142,23.82088773,113.17,113.07,80.02432919]
[1644357637342,1.25833098,113.18,113.07,80.02432919]
[1644357637742,13.2608,113.17,113.07,80.02432919]
[1644357638441,24.97779391,113.16,113.07,80.02432919]
[1644357638643,78.08953098,113.19,113.07,80.02432919]
[1644357639146,80.19728647,113.19,113.07,79.77432919]
[1644357639342,13.2622,113.16,113.07,79.77432919]
[1644357639747,39.59298883,113.15,113.07,66.51042919]
[1644357640344,39.59298883,113.15,113.07,53.80042919]
[1644357640546,39.59298883,113.15,113.07,47.80042919]
[1644357640743,13.2652,113.13,113.07,47.80042919]
[1644357641344,43.04721162,113.13,113.07,47.80042919]
[1644357641544,43.04721162,113.13,113.07,36.22842919]
[1644357642444,43.04721162,113.13,113.05,25.9764]
[1644357642644,43.04721162,113.13,113.06,0.25]
[1644357642846,43.04721162,113.13,113.05,31.9764]
[1644357643045,43.04721162,113.13,113.05,18.71]
[1644357643445,43.04721162,113.13,113.05,52.61944838]
[1644357645350,43.04721162,113.13,113.05,12.71]
[1644357645547,43.04721162,113.13,113.03,12.71]
[1644357645752,66.78571162,113.13,113.03,12.96]
[1644357645971,66.78571162,113.13,113.03,18.96]
[1644357646549,66.78571162,113.13,113.04,37.48038435]
[1644357647751,72.78571162,113.13,113.04,37.73038435]
[1644357647951,66.78571162,113.13,113.04,46.71538435]
[1644357648350,66.78571162,113.13,113.04,59.42538435]
[1644357648550,66.78571162,113.13,113.04,65.42538435]
[1644357649051,66.78571162,113.13,113.04,78.69278435]
[1644357649254,66.78571162,113.13,113.04,80.01853146]
[1644357649451,66.78571162,113.13,113.04,78.69278435]
[1644357649653,66.82017636,113.13,113.04,78.69278435]
[1644357652654,68.07850734,113.13,113.04,78.69278435]
[1644357655784,1.25833098,113.12,113.04,78.69278435]
[1644357657587,0.03446474,113.13,113.06,192.41]
[1644357657786,1.28920277,113.14,113.08,13.2573]
[1644357657984,2.51151492,113.19,113.09,12.71]
[1644357658187,0.03446474,113.17,113.09,18.71]
[1644357658384,0.03446474,113.18,113.1,45.47262527]
[1644357658585,0.03446474,113.18,113.11,12.71]
[1644357658786,0.03446474,113.18,113.12,42.61409204]
[1644357658986,47.62926739,113.19,113.12,53.79709204]
[1644357659285,47.66373213,113.19,113.12,24.4399]
[1644357659488,47.62926739,113.19,113.12,11.183]
[1644357659686,5.0230068,113.18,113.12,11.183]
[1644357659887,2.51151492,113.17,113.12,11.183]
[1644357660086,2.51151492,113.17,113.1,12.71]
[1644357660289,31.51557896,113.16,113.08,25.973]
[1644357660489,57.65305862,113.16,113.06,12.71]
[1644357660788,59.76081411,113.16,113.04,12.71]
[1644357660994,5.0263207,113.15,113.04,12.71]
[1644357661188,0.03446474,113.14,113.04,12.71]
[1644357661590,39.11775247,113.13,113.04,62.00922194]
[1644357661787,39.15221721,113.13,113.04,62.25922194]
[1644357662689,52.41761721,113.13,113.05,13.2664]
[1644357663089,52.41761721,113.13,113.05,19.5164]
[1644357663289,52.41761721,113.13,113.05,13.5164]
[1644357663891,52.41761721,113.13,113.05,13.2664]
[1644357664090,52.41761721,113.13,113.05,19.2664]
[1644357664291,54.92913213,113.13,113.05,13.2664]
[1644357664695,54.92913213,113.13,113.06,38.30107054]
[1644357664894,54.89466739,113.13,113.06,51.56637054]
[1644357665195,52.38315247,113.13,113.06,13.2653]
[1644357665392,54.89466739,113.13,113.06,13.2653]
[1644357665592,54.89466739,113.13,113.04,12.71]
[1644357665793,54.92913213,113.13,113.04,18.71]
[1644357665994,54.92913213,113.13,113.04,12.71]
[1644357666193,54.92913213,113.13,113.05,13.2667]
[1644357666395,5.028436,113.12,113.05,13.2667]
[1644357666596,44.78307896,113.11,113.05,13.2667]
[1644357667198,44.78307896,113.11,113.05,49.64618387]
[1644357667396,44.78307896,113.11,113.05,13.2667]
[1644357668502,44.78307896,113.11,113.04,25.9779]
[1644357670801,44.78307896,113.11,113.04,26.2279]
[1644357671102,44.78307896,113.11,113.04,25.9779]
[1644357671303,44.78307896,113.11,113.05,41.89837488]
[1644357671500,44.78307896,113.11,113.05,55.16527488]
[1644357671700,44.78307896,113.11,113.05,55.41527488]
[1644357673514,44.78307896,113.11,113.05,13.5169]
[1644357674604,44.78307896,113.11,113.05,51.56965672]
[1644357676706,13.2675,113.11,113.05,51.56965672]
[1644357677005,35.7851,113.12,113.05,51.56965672]
[1644357678106,70.02665459,113.12,113.05,51.56965672]
[1644357681019,70.02665459,113.12,113.05,13.5169]
[1644357682009,70.02665459,113.12,113.05,61.32527026]
[1644357682409,70.02665459,113.12,113.05,67.32527026]
[1644357682610,70.02665459,113.12,113.05,61.32527026]
[1644357683409,70.02665459,113.12,113.05,13.2669]
[1644357684112,72.53816951,113.12,113.05,13.2669]
[1644357684713,70.02665459,113.12,113.05,13.2669]
[1644357685011,70.02665459,113.12,113.05,13.5169]
[1644357685214,70.02665459,113.12,113.05,13.2669]
[1644357686212,72.53816951,113.12,113.05,12.7669]
[1644357686614,70.02665459,113.12,113.05,12.7669]